Cogmind - Beta 15 @@@ ROGUE MODE // 2025.06.19 @ 19:25:09 Player: KN-OKO Result: Destroyed by P-70 Sage via exploding Nuclear Reactor Performance ------------- Evolutions (5) 2500 Regions Visited (5) 1000 Robots Destroyed (45) 225 Value Destroyed (1765) 1765 Prototype IDs (17) 340 Alien Tech Used (0) 0 Bonus (1159) 1159 TOTAL SCORE: 6989 Bonus ------- Follower Combat Kills 359 Registered with UFD 300 Met Optimus in HQ 500 Cogmind --------- Core Integrity 0/1000 Matter 137/300 Energy 100/100 System Corruption 18% Temperature Cool (0) Movement Core (50) Location -5/Factory Parts ------- > --- POWER (2) -------- (None) > --- PROPULSION (5) --- Armored Medium Treads > --- UTILITY (7) ------ Advanced Targeting Computer > --- WEAPON (3) ------- Power Maul > --- INVENTORY (5) ---- Micro Fission Core Wheel Wheel Seismic Detector Proton Missile Launcher Peak State ------------ > --- POWER ------------ Neutrino Core Micro Fission Core > --- PROPULSION ------- Light Treads Overtuned Medium Treads Carbon-fiber Leg Overtuned Titanium Leg > --- UTILITY ---------- Scrap Suit Improved Heat Sink Improved Heat Sink Large Storage Unit Machine Analyzer Advanced Shield Generator > --- WEAPON ----------- Overtuned Pulse Rifle Mass Driver Enhanced Flamer > --- INVENTORY -------- Seismic Detector Advanced Targeting Computer Advanced Component Analysis Suite A0-MCA's Component Scanner Variable Charge Gun Long-range Proton Cannon Overtuned Railgun Improved Light Cannon Mass Driver Proton Missile Launcher Improved Remote Datajack Vortex Trap [Rating: 67] Favorites ----------- Power Improved Ion Engine Engine Improved Ion Engine Power Core Neutrino Core Propulsion Light Treads Treads Light Treads Leg Carbon-fiber Leg Utility Large Storage Unit Device Improved Heat Sink Storage Large Storage Unit Processor Machine Analyzer Protection Hardened Medium Armor Plating Weapon Improved Light Cannon Energy Gun Overtuned Pulse Rifle Energy Cannon Particle Cannon Ballistic Gun Autogun Ballistic Cannon Improved Light Cannon Special Weapon Enhanced Flamer Impact Weapon Power Maul Special Melee Weapon Improved Datajack Build | -11 -10 -10 -7 -7 -5 ------- Run | Yrd Mat Sub Rec Scr Fac Slots Evolved 10 | . . . . . 10 Power 1 | . . . . . 1 Propulsion 3 | . . . . . 3 Utility 5 | . . . . . 5 Weapon 1 | . . . . . 1 Parts Attached 50 | 8 10 3 2 3 24 Power 7 | 1 2 . . . 4 Engine 2 | 1 1 . . . . Core 5 | . 1 . . . 4 Reactor . | . . . . . . Propulsion 9 | 2 . 1 1 . 5 Treads 6 | 2 . 1 1 . 2 Leg 3 | . . . . . 3 Wheel . | . . . . . . Hover . | . . . . . . Flight . | . . . . . . Utility 12 | 2 3 . 1 . 6 Device 7 | 1 2 . 1 . 3 Storage 2 | 1 1 . . . . Processor 2 | . . . . . 2 Hackware . | . . . . . . Protection 1 | . . . . . 1 Artifact . | . . . . . . Weapon 22 | 3 5 2 . 3 9 Energy Gun 8 | 3 1 1 . 1 2 Energy Cannon 2 | . 2 . . . . Ballistic Gun 4 | . . . . . 4 Ballistic Cannon 5 | . 2 1 . . 2 Launcher . | . . . . . . Special Weapon 1 | . . . . 1 . Impact Weapon 1 | . . . . . 1 Slashing Weapon . | . . . . . . Piercing Weapon . | . . . . . . Special Melee Weapon 1 | . . . . 1 . Unidentified Prototypes . | . . . . . . Parts Lost 25 | . 2 1 1 . 21 Power 6 | . 1 . . . 5 Propulsion 8 | . . 1 1 . 6 Utility 6 | . . . . . 6 Weapon 5 | . 1 . . . 4 Highest Loss Streak 15 | . 1 1 1 . 15 To Critical Strikes . | . . . . . . Average Backups 11 | 4 10 13 14 14 9 Power . | . 1 . . . . Propulsion 3 | 3 4 4 3 2 . Utility 2 | . 1 1 2 3 2 Weapon 5 | . 3 7 7 8 4 Tool/Special . | . . . . . . Unused Backups 23 | . 4 . 3 7 9 Power 3 | . 2 . . . 1 Propulsion 7 | . 2 . . 3 2 Utility 3 | . . . . 1 2 Weapon 9 | . . . 3 3 3 Tool/Special 1 | . . . . . 1 Average Slot Usage (%) 94 | . 99 100 98 99 78 Engine 9 | . 6 14 14 14 3 Core 3 | . 7 . . . 6 Treads 24 | . 28 28 28 28 13 Leg 1 | . . . . . 5 Device 14 | . 14 14 14 14 15 Storage 11 | . 14 14 14 14 4 Processor 1 | . . . . . 5 Energy Gun 7 | . 17 . 14 2 4 Ballistic Cannon 11 | . 9 28 12 13 4 Special Weapon 1 | . . . . . 4 Special Melee Weapon 3 | . . . . 11 . Peak Build Rating 67 | 7 13 12 14 18 67 Average Rating 21 | 5 10 11 13 16 49 On Entrance 10 | . 7 11 12 12 18 Naked Turns . | . . . . . . Heaviest Build 69 | 11 36 37 37 37 69 Greatest Support 65 | 40 40 40 40 40 65 Greatest Overweight (x) 1 | 1 . . . . 1 Average Overweight (x) . | . . . . . . Largest Inventory Capacity 15 | 8 15 15 15 15 15 Average Capacity 14 | 7 14 15 15 15 14 Most Carried 15 | 6 15 14 15 15 15 Average Carried 12 | 4 10 13 14 14 10 Final Capacity 15 | 8 15 15 15 15 5 Final Carried 15 | 6 13 14 14 15 5 Class Distribution -------------------- 39% | Commander-Mutant 39% | Mutant 8% | Commander-Tank 7% | Scavenger-Tank 5% | Scavenger-Scrapper Dominant Class ---------------- Mutant | -10/Materials Mutant | -10/Subcaves Commander-Mutant | -7/Recycling Commander-Mutant | -7/Scraptown Commander-Tank | -5/Factory Resources | -11 -10 -10 -7 -7 -5 ----------- Run | Yrd Mat Sub Rec Scr Fac Matter Collected 1141 | 260 180 152 100 30 419 Remotely . | . . . . . . Salvage Created 1507 | 20 583 16 29 . 859 Parts 90 | 4 30 7 1 . 48 Haulers Intercepted 1 | . 1 . . . . Recyclers Shooed 1 | . . . 1 . . Parts Field Recycled . | . . . . . . Retrieved Matter . | . . . . . . Parts Self-Destructed 17 | . . 17 . . . Prevented . | . . . . . . Kills | -11 -10 -10 -7 -7 -5 ------- Run | Yrd Mat Sub Rec Scr Fac Combat Hostiles Destroyed 36 | . 14 3 1 . 18 Guns 24 | . 14 . . . 10 Cannons 9 | . . 3 1 . 5 Classes Destroyed 13 | 1 4 1 1 . 6 Worker 1 | . . . . . 1 Builder 2 | . . . . . 2 Tunneler 1 | 1 . . . . . Hauler 1 | . 1 . . . . Recycler 1 | . . . . . 1 Turret 1 | . . 1 . . . Watcher 2 | . 1 . . . 1 Swarmer 10 | . 3 3 . . 4 Grunt 13 | . 11 . . . 2 Brawler 1 | . . . . . 1 Sentry 1 | . . . . . 1 Specialist 1 | . . . . . 1 Programmer 10 | . . . 1 . 9 Best Kill Streak 7 | 1 2 2 1 . 7 Combat Bots Only 6 | . 2 2 1 . 6 Max Kills in Single Turn 2 | 1 1 1 1 . 2 Gunslinging . | . . . . . . Exploded . | . . . . . . Melee . | . . . . . . Uniques/NPCs Destroyed . | . . . . . . Combat | -11 -10 -10 -7 -7 -5 -------- Run | Yrd Mat Sub Rec Scr Fac Hostile Shots Fired 431 | . 56 44 31 . 300 Missed 120 | . 13 19 16 . 72 Hits 311 | . 43 25 15 . 228 Projectile 311 | . 43 25 15 . 228 AOE 3 | . . . . . 3 Critical Strikes 18 | . . . 1 . 17 Part Disruptions 2 | . . . . . 2 Damage Taken 5050 | . 590 167 134 . 4159 Core 1210 | . 116 43 5 . 1046 Absorbed by Shields 191 | . . . . . 191 Regen/Repaired (Parts) 3 | . . . . . 3 Core Remaining (%) 67 | 100 . . . 34 . Volleys Fired 153 | 4 60 13 11 . 65 Largest 3 | 2 2 2 1 . 3 Hottest 295 | 80 80 66 33 . 295 Shots Fired 316 | 8 106 26 29 . 147 Gun 191 | 8 79 . 18 . 86 Cannon 100 | . 27 26 11 . 36 Launcher . | . . . . . . Special 25 | . . . . . 25 Kinetic 122 | . 14 26 11 . 71 Thermal 157 | 8 55 . 18 . 76 Explosive . | . . . . . . Electromagnetic 37 | . 37 . . . . Robot Hit Streak 17 | 3 17 4 6 . 16 Robot Miss Streak 7 | 1 4 7 6 . 3 Penetration Max 1 | . . . . . 1 Secondary Targets 3 | . 1 . . . 2 Max Gunslinging Chain 1 | . 1 . . . 1 Autonomous 18 | . . . 18 . . Shots Hit Robots 210 | 6 61 13 22 4 104 Core Hits 79 | 1 29 6 6 . 37 Critical Kills . | . . . . . . Critical Parts Destroyed 1 | . . . . . 1 Critical Strikes 17 | . 1 1 . . 15 Burn 11 | . . . . . 11 Destroy 1 | . . . . . 1 Blast 4 | . . 1 . . 3 Corrupt 1 | . 1 . . . . Melee Attacks 7 | . . . . 4 3 Impact 3 | . . . . . 3 Slashing . | . . . . . . Piercing . | . . . . . . Sneak Attacks 4 | . . . . 4 . Combat Hostiles . | . . . . . . Follow-up Attacks . | . . . . . . Damage Inflicted 4150 | 65 833 282 347 . 2623 Guns 2553 | 65 726 . 186 . 1576 Cannons 1290 | . 60 282 160 . 788 Explosions 45 | . 45 . . . . Melee . | . . . . . . Ramming 12 | . 2 . 1 . 9 Kinetic 1867 | . 60 282 160 . 1365 Thermal 1861 | 65 361 . 186 . 1249 Explosive . | . . . . . . Electromagnetic 410 | . 410 . . . . Impact . | . . . . . . Slashing . | . . . . . . Piercing . | . . . . . . Highest Corruption 18 | . . . 1 . 18 Average Corruption 5 | . . . 1 . 8 Corruption Purged . | . . . . . . Corruption Blocked . | . . . . . . Effects 26 | . . . 3 . 23 Message Errors 9 | . . . 2 . 7 Matter Fused 1 | . . . . . 1 Heat Flow Errors 2 | . . . . . 2 Energy Discharges 6 | . . . 1 . 5 Parts Rejected 1 | . . . . . 1 Data Loss (minor) 1 | . . . . . 1 Misfires 1 | . . . . . 1 Misdirections 2 | . . . . . 2 Weapon Failures 3 | . . . . . 3 Overload Shots 2 | . . . . . 2 Overflow Damage 43 | . 11 . 21 . 11 Projectiles 43 | . 11 . 21 . 11 Explosions . | . . . . . . Melee . | . . . . . . Knockbacks 11 | . 1 1 1 . 8 Impact . | . . . . . . Kinetic 10 | . 1 1 1 . 7 Secondary 1 | . . . . . 1 Self-Inflicted Damage . | . . . . . . Shots . | . . . . . . Rammed 2 | . 1 . 1 . . Targets Rammed 3 | . 1 . 1 . 1 Kicked 1 | . . . . . 1 Crushed . | . . . . . . Highest Temperature 511 | 36 303 1 263 . 511 Average Temperature 106 | 16 76 1 101 . 133 Received Heat Transfer 717 | . 252 102 30 . 333 Effects 7 | . 1 . . . 6 Shutdowns 1 | . . . . . 1 Energy Bleed 2 | . 1 . . . 1 Interference 3 | . . . . . 3 Damage (minor) 1 | . . . . . 1 Siege Activations . | . . . . . . Martial Activations . | . . . . . . Shielding Activations . | . . . . . . Robots Disrupted 1 | . . . . . 1 Combat Hostiles 1 | . . . . . 1 Robots Corrupted . | . . . . . . Combat Hostiles . | . . . . . . Parts Fried 3 | . 3 . . . . Impact Corruptions . | . . . . . . Robots Melted 5 | . . . . . 5 Combat Hostiles 3 | . . . . . 3 Parts Melted 5 | . . . . . 5 Heat Transferred 6452 | 150 825 . 551 . 4926 Parts Sabotaged . | . . . . . . Parts Stolen . | . . . . . . Parts Stripped . | . . . . . . Power Chain Reactions 1 | . 1 . . . . Alert | -11 -10 -10 -7 -7 -5 ------- Run | Yrd Mat Sub Rec Scr Fac Maximum Alert Level 1 | . 1 . . . 1 Low Security (%) 84 | 100 98 . 100 . 62 Level 1 15 | . 1 . . . 37 Level 2 . | . . . . . . Level 3 . | . . . . . . Level 4 . | . . . . . . Level 5 . | . . . . . . High Security . | . . . . . . Max Security . | . . . . . . Peak Influence 355 | 5 202 . 46 . 355 Initial 26 | . . . 26 . . Average 96 | . 92 . 9 . 144 Influence Increases 1744 | 5 456 185 97 . 1001 Destroy 0b10 Robot/C 920 | . 280 80 60 . 500 Destroy 0b10 Robot/NC 50 | 5 10 . 10 . 25 Destroy Leader 166 | . 74 . . . 92 Allied During Kill 79 | . . . 27 . 52 Trap Triggered on 0b10 10 | . . . . . 10 Successful Hack 14 | . . . . . 14 Disable Machine 165 | . 45 . . . 120 Destroy Structure 100 | . 2 . . . 98 Lose Combat Pursuer 240 | . 45 105 . . 90 Influence Decreases 1395 | 5 442 144 152 . 652 Entered New Map 36 | . . 7 29 . . Time Decay 1007 | 5 422 127 111 . 342 Lost Part 250 | . 20 10 10 . 210 Lost Ally 102 | . . . 2 . 100 Squads Dispatched 15 | . 4 . . . 11 Investigation 2 | . 1 . . . 1 Extermination 3 | . . . . . 3 Reinforcement 8 | . 3 . . . 5 Assault . | . . . . . . Garrison 2 | . . . . . 2 Intercept . | . . . . . . Searches Triggered . | . . . . . . Construction Impeded 2 | . . . . . 2 Haulers Reinforced . | . . . . . . Active Scanning Responses . | . . . . . . Cargo Convoy Interrupts 1 | . . . . . 1 Stealth | -11 -10 -10 -7 -7 -5 --------- Run | Yrd Mat Sub Rec Scr Fac Distress Signals 6 | . 3 . 1 . 2 Communications Jammed . | . . . . . . Distress Signals . | . . . . . . Times Spotted 80 | . 23 6 5 . 46 Peak Tracking Total 9 | . 5 5 2 . 9 Tactical Retreats 10 | . 2 3 . . 5 Traps | -11 -10 -10 -7 -7 -5 ------- Run | Yrd Mat Sub Rec Scr Fac Traps Triggered 2 | . 2 . . . . Indirectly . | . . . . . . Trap Hack Attempts . | . . . . . . Triggered . | . . . . . . Disarmed . | . . . . . . Reprogrammed . | . . . . . . Reused 1 | . . . . . 1 Traps Extracted . | . . . . . . Installed 1 | . . . . . 1 Triggered 1 | . . . . . 1 Most Traps Carried 1 | . . . . 1 1 Machines | -11 -10 -10 -7 -7 -5 ---------- Run | Yrd Mat Sub Rec Scr Fac Machines Disabled 12 | . 3 1 . . 8 Max in Single Turn 1 | . 1 1 . . 1 Machines Repaired . | . . . . . . Machines Dismantled . | . . . . . . Machines Sabotaged . | . . . . . . Overloaded Fab Kills . | . . . . . . Hacking | -11 -10 -10 -7 -7 -5 --------- Run | Yrd Mat Sub Rec Scr Fac Machines Accessed 9 | . 1 . . 3 5 Terminals 2 | . 1 . . . 1 Fabricators 3 | . . . . . 3 Repair Stations 1 | . . . . . 1 Recycling Units . | . . . . . . Scanalyzers . | . . . . . . Garrison Access . | . . . . . . Total Hacks 26 | . 3 . . 12 11 Successful 16 | . . . . 12 4 Failed 10 | . 3 . . . 7 Catastrophic 6 | . 2 . . . 4 Database Lockouts . | . . . . . . Manual 3 | . . . . . 3 Terminals 7 | . 3 . . . 4 Fabricators 6 | . . . . . 6 Repair Stations 1 | . . . . . 1 Recycling Units . | . . . . . . Scanalyzers . | . . . . . . Garrison Access . | . . . . . . Terminal Hacks 13 | . . . . 12 1 Record 4 | . . . . 4 . Robot Analysis 7 | . . . . 7 . Alert Level 1 | . . . . . 1 Proto ID Catalog 1 | . . . . 1 . Fabricator Hacks 1 | . . . . . 1 Build 1 | . . . . . 1 Repair Station Hacks . | . . . . . . Recycling Unit Hacks . | . . . . . . Scanalyzer . | . . . . . . Garrison Access Hacks . | . . . . . . Unauthorized Hacks 2 | . . . . . 2 Terminals 2 | . . . . . 2 Botnet 1 | . . . . . 1 Skim 1 | . . . . . 1 Fabricators . | . . . . . . Repair Stations . | . . . . . . Recycling Units . | . . . . . . Scanalyzers . | . . . . . . Garrison Access . | . . . . . . Data Cores Recovered . | . . . . . . Used . | . . . . . . Hacking Detections 6 | . 1 . . . 5 Full Trace Events 1 | . . . . . 1 Feedback Events . | . . . . . . Feedback Blocked . | . . . . . . Robot Schematics Acquired . | . . . . . . Robots Built . | . . . . . . Authchips . | . . . . . . Time . | . . . . . . Total Robot Build Rating . | . . . . . . Part Schematics Acquired . | . . . . . . Parts Built 2 | . . . . . 2 Authchips . | . . . . . . Time 64 | . . . . . 64 Total Part Build Rating 16 | . . . . . 16 Parts Repaired . | . . . . . . Time . | . . . . . . Parts Recycled . | . . . . . . Recycled Matter . | . . . . . . Retrieved Matter . | . . . . . . Retrieved Components . | . . . . . . Parts Scanalyzed . | . . . . . . Part Schematics Acquired . | . . . . . . Parts Damaged . | . . . . . . Bothacking | -11 -10 -10 -7 -7 -5 ------------ Run | Yrd Mat Sub Rec Scr Fac Used RIF Installer . | . . . . . . Robots Hacked 4 | . . . . 4 . Non-combat 1 | . . . . 1 . Combat 3 | . . . . 3 . Robot Hacks Applied 4 | . . . . 4 . parse_system 4 | . . . . 4 . Relay Couplers Released . | . . . . . . Fabnet Peak Effective % . | . . . . . . Robots Rewired 8 | . . . 8 . . Allies Hacked . | . . . . . . Hacks Repelled . | . . . . . . Allies | -11 -10 -10 -7 -7 -5 -------- Run | Yrd Mat Sub Rec Scr Fac Total Allies 8 | . . . 8 . . Largest Group 8 | . . . 8 7 7 Highest-Rated Group 171 | . . . 171 141 141 Highest-Rated Ally 32 | . . . 32 32 32 Total Orders 2 | . . . . . 2 STAY 1 | . . . . . 1 FOLLOW 1 | . . . . . 1 Ally Attacks 67 | . . . 17 . 50 Total Damage 1879 | . . . 331 . 1548 Kills 12 | . . . 4 . 8 Allies Corrupted 1 | . . . . . 1 Allies Melted . | . . . . . . Intel | -11 -10 -10 -7 -7 -5 ------- Run | Yrd Mat Sub Rec Scr Fac Active Infowar (turns) 2762 | 27 1116 342 25 . 1252 Seismic 2384 | 27 1116 342 25 . 874 Machine Analysis 1242 | . . . . . 1242 Robot Analysis Total 7 | . . . . 7 . Derelict Logs Recovered . | . . . . . . Drone Launches . | . . . . . . Drone Recoveries . | . . . . . . Exploration | -11 -10 -10 -7 -7 -5 ------------- Run | Yrd Mat Sub Rec Scr Fac Turns Passed 5576 | 181 1354 342 479 1897 1323 Spaces Moved 2992 | 94 649 185 188 1166 710 Core 181 | 6 . . . . 175 Treads 2679 | 88 649 185 188 1166 403 Legs 132 | . . . . . 132 Wheels . | . . . . . . Hover . | . . . . . . Flight . | . . . . . . Fastest Speed 50 | 50 160 160 160 160 50 Average Speed 154 | 154 160 160 160 160 135 Slowest Speed 213 | 160 160 160 160 160 213 Overloaded Moves . | . . . . . . Propulsion Burnouts . | . . . . . . Robots Hopped . | . . . . . . Potential Cave-ins . | . . . . . . Cave-ins Triggered . | . . . . . . Exploration Rate (%) 43 | 5 99 13 41 82 20 Regions Visited 5 Branch Regions 3 Pre-discovered Areas . | . . . . . . Known Exits Taken . | . . . . . . Unknown Exits Taken 5 | 1 1 1 1 1 . Scrap Searched 4 | . . . . 4 . Spaces Dug 4 | . . . . . 4 Terrain Destroyed 22 | . 2 . . . 20 Melee 1 | . . . . . 1 Projectile 19 | . . . . . 19 AOE 2 | . 2 . . . . Terrain Rammed . | . . . . . . Walls Destroyed . | . . . . . . Machines Disabled . | . . . . . . Actions | -11 -10 -10 -7 -7 -5 --------- Run | Yrd Mat Sub Rec Scr Fac Total 3695 | 118 859 205 357 1205 951 Wait 251 | 6 104 3 26 7 105 Move 2987 | 93 648 184 187 1165 710 Hop . | . . . . . . Pick Up 56 | 5 14 1 2 13 21 Fast Attach 21 | 8 4 1 1 . 7 Attach 24 | . 2 1 1 2 18 Detach 11 | 1 4 1 2 . 3 Swap 19 | 1 11 1 . 2 4 Drop 39 | . 11 . 3 12 13 Fire 153 | 4 60 13 11 . 65 Melee 7 | . . . . 4 3 Ram . | . . . . . . Kick 1 | . . . . . 1 Crush 2 | . 1 . 1 . . Escape Stasis . | . . . . . . Rewire 123 | . . . 123 . . Trap 1 | . . . . . 1 Miscellaneous . | . . . . . . Route ------- -11/Scrapyard -10/Materials (discovered 5 exits: [*Mat x3] / [*Min] / [*Sub]) -10/Subcaves -7/Recycling -7/Scraptown (discovered 2 exits: *Fac x2) -5/Factory History --------- Turn | Location | Event 62 | -11/Scrapyard | Discovered new exit (range 12) 182 | -11/Scrapyard | Entered Materials 307 | -10/Materials | Build established: Mutant 324 | -10/Materials | Discovered new exit (range 3) 689 | -10/Materials | Discovered new exit (range 5) 772 | -10/Materials | Discovered new exit (range 13) 891 | -10/Materials | Discovered new exit (range 6) 1525 | -10/Materials | Discovered new exit (range 4) 1536 | -10/Materials | Entered Subcaves 1537 | -10/Subcaves | Approached by a straggling Scientist 1825 | -10/Subcaves | Core integrity fell below 50% 1846 | -10/Subcaves | Discovered new exit (range 15) 1878 | -10/Subcaves | Entered Recycling 2298 | -7/Recycling | Scanned before Scraplab entrance 2321 | -7/Recycling | Entered Scraplab 2324 | -7/Recycling | Build established: Commander-Mutant 2334 | -7/Recycling | Discovered new exit (range 2) 2357 | -7/Recycling | Entered Scraptown 2357 | -7/Scraptown | Accompanied by 7 allies 2357 | -7/Scraptown | System corruption cleaned by C-Scrubber 2806 | -7/Scraptown | Heard Great Nut preacher, LISTEN AND RECITE! 2873 | -7/Scraptown | Discovered new exit (range 13) 2917 | -7/Scraptown | Visited TADAMA 3005 | -7/Scraptown | Visited Cave Peace 3055 | -7/Scraptown | Visited Assassins FH 3095 | -7/Scraptown | Visited Cyclists 3129 | -7/Scraptown | Visited The Evicted 3157 | -7/Scraptown | Visited Red Mages 3253 | -7/Scraptown | Visited UFD Registry 3253 | -7/Scraptown | Registered with UFD as "Roughsink" 3309 | -7/Scraptown | Entered Cyclist Reading Room 3402 | -7/Scraptown | Visited Junk Repository 3450 | -7/Scraptown | Visited Science Guys 3512 | -7/Scraptown | Visited Scrap Suit Storage 3658 | -7/Scraptown | Visited Analyses Database 3695 | -7/Scraptown | Visited Infowarlord's Domain 3722 | -7/Scraptown | Visited Junk Repository 3776 | -7/Scraptown | Visited Observation Area 3802 | -7/Scraptown | Visited A0-MCA Data Center 3812 | -7/Scraptown | Given an A- rating by A0-MCA 3818 | -7/Scraptown | Found A0-MCA's Component Scanner 3851 | -7/Scraptown | Visited Abandonware Association 3872 | -7/Scraptown | Learned abandonware demo "SHUTEYE.EXE" 3914 | -7/Scraptown | Visited Modified Component R&D 4133 | -7/Scraptown | Met Optimus 4133 | -7/Scraptown | Accepted into 0bPrime 4219 | -7/Scraptown | Found Scrap Suit 4243 | -7/Scraptown | Discovered new exit (range 3) 4254 | -7/Scraptown | Entered Factory 4254 | -5/Factory | Accompanied by 7 allies 4254 | -5/Factory | Evolved 10 slots: Power x1, Propulsion x3, Utility x5, Weapon x1 4527 | -5/Factory | Fabricated Adv. Component Analysis Suite (x2) 4541 | -5/Factory | Build established: Commander-Tank 5000 | -5/Factory | Build established: Scavenger-Tank 5390 | -5/Factory | Cargo convoy interrupted 5396 | -5/Factory | System corruption reached 10% 5414 | -5/Factory | Garrison activated, responded to threat 5473 | -5/Factory | Core integrity fell below 50% 5494 | -5/Factory | Lost 15 parts (4p3n4u4w) 5508 | -5/Factory | Spotted B-75 Beast 5536 | -5/Factory | Core integrity fell below 20% 5577 | -5/Factory | Destroyed by P-70 Sage via exploding Nuclear Reactor Last Messages --------------- 05526_ Fusion Modulator explodes. 05526_ W-25 Informer destroyed. 05526_ R-10 Processor destroyed. 05526_ U-05 Engineer destroyed. 05527_ K-01 Serf collects debris. 05531_ ALERT: Hostiles spotted, dispatching reinforcements to Terminal F015. 05539_ Acquired Arm. Medium Treads. 05550_ VXPZ#1>TSFQBOQVWK/DFZCJ% 05557_ O-24 Administrator: "IFF HANDSHAKE FAILED. SECURING TERMINAL." 05569_ System corrupted: Arm. Medium Treads rejected. 05570_ O-24 Administrator uses terminal to summon reinforcements. 05570_ ALERT: Hostiles spotted, dispatching reinforcements to Terminal F013. 05570_ O-24 Administrator locks terminal. 05570_ Acquired Arm. Medium Treads. 05577_ Nuclear Reactor explodes. Map ----- +----------------------------------------------------+ | ???????????????????"""?"""???????????????????????? | | ???????????????????"""?""" ????????????????????? | | ???????????????????"""?""" ????????????????????? | | ??????????????????????? ???????????????????? | | ??????????????????????? ???????????????????? | | ???????????????????????# #???????????????????? | | ???????????????????????# #???????????????????? | | ???????????????????????# #???????????????????? | | ???????????????????????# #???????????????????? | | ???????????????????????# #???????????????????? | | ???????????????????????# #???????????????????? | | ???????????????????????# #???????????????????? | | ???????????????????????# #???????????????????? | | ???????????????????????# ########????????????? | | ???????????????????????# #????????????? | | ???????????????????????# #????????????? | | ???????????????????????# #????????????? | | ???????????????????????# #????????????? | | ??????????????????????## #????????????? | | ????????????###########;####### #????????????? | | ????????????# p # #????????????? | | ????????????# # #????????????? | | ????????????# """ + +????????????? | | ????????????# o """ # #????????????? | | ????????????# ""T"" """ # #????????????? | | ????????????# """"" p @ # #????????????? | | ????????????# ! # #????????????? | | ????????????################### ##+#####?????? | | ?????????????###??????????????# #?????? | | ???????????? ??????????????# ######? | | ????????????" ??????????????# | | ????????????" | ??????????????# #####?? | | ???????????"" ??????????????# #?????? | | ?""???# ???"" ???#???############### #?????? | | ?""???# ? ? #???# !# #?????? | | ?T"???# """" """" #???# # #?????? | | ?""???# """" """" #???# + +?????? | | ?""???# """" """" #???# # #?????? | | ??????# """" """" #???? ""T"" # #?????? | | ??????# #?????""""" ?# #?????? | | ??????# #???????#########?# #?????? | | #######""""""""""##################### #?????? | | ] ^ #?????? | | #?????? | | #?????? | | #?????? | | | | ######!% % ###+#############+############+#? | | ?????#" ?????????# % #???????? | | ?????#" ????????# % #???????? | +----------------------------------------------------+ Best States ------------- Heat Dissipation 68 Energy Generation 29 Energy Capacity 480 Matter Stores 300 Matter Capacity 300 Sight Range 16 Terrain Scan Density 10 Armor Coverage 225 Evasion (%) 50 Targeting Accuracy 8 Recoil Reduction 3 Item Schematics ----------------- None Robot Schematics ------------------ None Fabricated ------------ Adv. Component Analysis Suite | x2 | -5/Factory | Preloaded Repaired ---------- Nothing Alien Tech Used ----------------- None Achievements -------------- None Challenges ------------ None Game ------ Seed CobblerWaveDoomcannon Manual? 0 Play Time 00:42:02 Cumulative 499.5 hours Start 2025.06.17 @ 20:40:28 End 2025.06.19 @ 19:25:09 Sessions 3 Manual Loads 0 Difficulty Rogue Special Mode None Game No. 345 Rogue 345 Adventurer 0 Explorer 0 Win Type - Total 46 Types 39/0/5/2/0/0/0/0/0/0 Lore% 83 Gallery% 79 Achievement% 72 Wizard Run 0 Options --------- Layout 1 ASCII 0 Keyboard 1 Movement Numpad Keybinds 0 Fullscreen 1 Font 32/SmallcapsGlow Map View 50x35 Zoom Use 0% Tactical HUD 1 Map Filters NONE Filters NONE Steam 1 RUN: 962e7a56-0a99-4aa3-b50c-f3470ed80369